[Event "Titled Tuesday Blitz May 16 Early 2023"]
[White "Aradhya, Garg"]
[Black "Tanmay Jain"]
[WhiteFideId "25006746"]
[BlackFideId "45015481"]
[WhiteElo "2263"]
[BlackElo "2032"]
[Result "0-1"]
[Round "07"]
[TimeControl "180+2"]
[Date "2023.05.16"]
[WhiteClock "0:00:00"]
[BlackClock "0:00:06"]

1. d4 {[%clk 0:03:00]}  Nf6 {[%clk 0:02:59]} 2. c4 {[%clk 0:03:01]}  e6 {[%clk 0:02:59]} 3. Nf3 {[%clk 0:03:01]}  d5 {[%clk 0:02:59]} 4. Nc3 {[%clk 0:03:01]}  Be7 {[%clk 0:02:59]} 5. Bf4 {[%clk 0:03:00]}  O-O {[%clk 0:03:00]} 6. a3 {[%clk 0:03:00]}  b6 {[%clk 0:02:59]} 7. e3 {[%clk 0:03:00]}  Bb7 {[%clk 0:03:00]} 8. Rc1 {[%clk 0:02:59]}  c5 {[%clk 0:02:58]} 9. cxd5 {[%clk 0:02:56]}  exd5 {[%clk 0:02:56]} 10. Bd3 {[%clk 0:02:55]}  Nc6 {[%clk 0:02:55]} 11. O-O {[%clk 0:02:54]}  Bd6 {[%clk 0:02:52]} 12. Bg5 {[%clk 0:02:54]}  Be7 {[%clk 0:02:50]} 13. Ne5 {[%clk 0:02:47]}  Nxe5 {[%clk 0:02:47]} 14. dxe5 {[%clk 0:02:46]}  Ne4 {[%clk 0:02:45]} 15. Bxe4 {[%clk 0:02:38]}  dxe4 {[%clk 0:02:40]} 16. Qxd8 {[%clk 0:02:39]}  Bxd8 {[%clk 0:02:41]} 17. Bf4 {[%clk 0:02:39]}  Bc7 {[%clk 0:02:37]} 18. Rfd1 {[%clk 0:02:39]}  Rad8 {[%clk 0:02:36]} 19. Nb5 {[%clk 0:02:38]}  Bb8 {[%clk 0:02:33]} 20. Nd6 {[%clk 0:02:37]}  Bc6 {[%clk 0:02:31]} 21. b4 {[%clk 0:02:36]}  Ba4 {[%clk 0:02:17]} 22. Rd2 {[%clk 0:02:36]}  cxb4 {[%clk 0:02:09]} 23. axb4 {[%clk 0:02:37]}  f6 {[%clk 0:01:50]} 24. e6 {[%clk 0:02:33]}  Bxd6 {[%clk 0:01:45]} 25. Rxd6 {[%clk 0:02:32]}  Rxd6 {[%clk 0:01:29]} 26. Bxd6 {[%clk 0:02:33]}  Re8 {[%clk 0:01:30]} 27. e7 {[%clk 0:02:30]}  Kf7 {[%clk 0:01:24]} 28. Ra1 {[%clk 0:02:29]}  Ke6 {[%clk 0:01:13]} 29. Bf4 {[%clk 0:02:17]}  b5 {[%clk 0:01:09]} 30. Rc1 {[%clk 0:02:17]}  Rxe7 {[%clk 0:01:09]} 31. Rc6+ {[%clk 0:02:17]}  Kf7 {[%clk 0:01:07]} 32. g4 {[%clk 0:02:17]}  Rd7 {[%clk 0:01:04]} 33. g5 {[%clk 0:02:14]}  Bd1 {[%clk 0:00:57]} 34. Kg2 {[%clk 0:02:11]}  Bf3+ {[%clk 0:00:54]} 35. Kg3 {[%clk 0:02:10]}  Rd1 {[%clk 0:00:43]} 36. gxf6 {[%clk 0:02:10]}  Rg1+ {[%clk 0:00:42]} 37. Kh3 {[%clk 0:02:04]}  g5 {[%clk 0:00:38]} 38. Bxg5 {[%clk 0:01:10]}  Rxg5 {[%clk 0:00:39]} 39. Rc7+ {[%clk 0:01:10]}  Kxf6 {[%clk 0:00:38]} 40. Rxa7 {[%clk 0:01:10]}  Rg7 {[%clk 0:00:24]} 41. Ra6+ {[%clk 0:01:05]}  Kf5 {[%clk 0:00:21]} 42. Rb6 {[%clk 0:01:06]}  Be2 {[%clk 0:00:21]} 43. Rh6 {[%clk 0:01:06]}  Rc7 {[%clk 0:00:18]} 44. Rh4 {[%clk 0:00:59]}  Rg7 {[%clk 0:00:17]} 45. Rf4+ {[%clk 0:00:59]}  Ke5 {[%clk 0:00:18]} 46. Rf8 {[%clk 0:00:58]}  Rc7 {[%clk 0:00:16]} 47. Re8+ {[%clk 0:00:57]}  Kf5 {[%clk 0:00:16]} 48. Rf8+ {[%clk 0:00:57]}  Kg6 {[%clk 0:00:17]} 49. Re8 {[%clk 0:00:57]}  Bd3 {[%clk 0:00:17]} 50. Rd8 {[%clk 0:00:56]}  Rc4 {[%clk 0:00:17]} 51. f4 {[%clk 0:00:55]}  Rxb4 {[%clk 0:00:17]} 52. Rd6+ {[%clk 0:00:52]}  Kg7 {[%clk 0:00:17]} 53. Kg4 {[%clk 0:00:52]}  Rb2 {[%clk 0:00:17]} 54. f5 {[%clk 0:00:52]}  Rf2 {[%clk 0:00:16]} 55. h4 {[%clk 0:00:49]}  b4 {[%clk 0:00:16]} 56. Rb6 {[%clk 0:00:47]}  Rb2 {[%clk 0:00:16]} 57. Kg5 {[%clk 0:00:46]}  Rg2+ {[%clk 0:00:16]} 58. Kf4 {[%clk 0:00:46]}  Rf2+ {[%clk 0:00:16]} 59. Ke5 {[%clk 0:00:46]}  Rf3 {[%clk 0:00:16]} 60. Rb7+ {[%clk 0:00:18]}  Kh6 {[%clk 0:00:15]} 61. Rb6+ {[%clk 0:00:18]}  Kh5 {[%clk 0:00:15]} 62. Rb7 {[%clk 0:00:18]}  h6 {[%clk 0:00:15]} 63. Rxb4 {[%clk 0:00:18]}  Rxe3 {[%clk 0:00:14]} 64. Rb6 {[%clk 0:00:18]}  Rf3 {[%clk 0:00:13]} 65. Rd6 {[%clk 0:00:18]}  Bc2 {[%clk 0:00:09]} 66. Rd2 {[%clk 0:00:16]}  Bd3 {[%clk 0:00:09]} 67. f6 {[%clk 0:00:11]}  Kg6 {[%clk 0:00:08]} 68. Rg2+ {[%clk 0:00:10]}  Kf7 {[%clk 0:00:07]} 69. Rg7+ {[%clk 0:00:11]}  Kf8 {[%clk 0:00:08]} 70. Rd7 {[%clk 0:00:11]}  Bc4 {[%clk 0:00:05]} 71. Rc7 {[%clk 0:00:10]}  Bd3 {[%clk 0:00:04]} 72. Rc8+ {[%clk 0:00:10]}  Kf7 {[%clk 0:00:05]} 73. Rc7+ {[%clk 0:00:11]}  Kg6 {[%clk 0:00:05]} 74. Rg7+ {[%clk 0:00:11]}  Kh5 {[%clk 0:00:05]} 75. Rd7 {[%clk 0:00:10]}  Kxh4 {[%clk 0:00:05]} 76. f7 {[%clk 0:00:10]}  Kg5 {[%clk 0:00:05]} 77. Kd6 {[%clk 0:00:08]}  Kg6 {[%clk 0:00:05]} 78. Ke5 {[%clk 0:00:04]}  Rxf7 {[%clk 0:00:05]} 79. Rd6+ {[%clk 0:00:05]}  Kg5 {[%clk 0:00:05]} 80. Rd8 {[%clk 0:00:06]}  Rf5+ {[%clk 0:00:05]} 81. Kd4 {[%clk 0:00:05]}  Kf4 {[%clk 0:00:06]} 82. Rh8 {[%clk 0:00:04]}  Rf6 {[%clk 0:00:05]} 83. Rg8 {[%clk 0:00:00]}  Rd6+ {[%clk 0:00:06]} 0-1


[Site "https://www.chess.com"]

[Event "Titled Tuesday Blitz May 16 Early 2023"]
[White "Osinovsky, Stepan"]
[Black "Andreev, Konstantin"]
[WhiteFideId "4157354"]
[BlackFideId "24239305"]
[WhiteElo "2222"]
[BlackElo "2106"]
[Result "1-0"]
[Round "07"]
[TimeControl "180+2"]
[Date "2023.05.16"]
[WhiteClock "0:00:47"]
[BlackClock "0:01:38"]

1. Nf3 {[%clk 0:03:00]}  Nf6 {[%clk 0:02:58]} 2. g3 {[%clk 0:03:01]}  b5 {[%clk 0:02:58]} 3. Bg2 {[%clk 0:03:02]}  Bb7 {[%clk 0:02:58]} 4. O-O {[%clk 0:03:03]}  e6 {[%clk 0:02:57]} 5. d3 {[%clk 0:03:03]}  Be7 {[%clk 0:02:58]} 6. e4 {[%clk 0:03:03]}  d6 {[%clk 0:02:57]} 7. Re1 {[%clk 0:03:03]}  O-O {[%clk 0:02:57]} 8. Nbd2 {[%clk 0:03:02]}  c5 {[%clk 0:02:55]} 9. a4 {[%clk 0:03:01]}  b4 {[%clk 0:02:50]} 10. e5 {[%clk 0:03:00]}  dxe5 {[%clk 0:02:49]} 11. Nxe5 {[%clk 0:03:00]}  Bxg2 {[%clk 0:02:50]} 12. Kxg2 {[%clk 0:03:00]}  Qc7 {[%clk 0:02:48]} 13. Qf3 {[%clk 0:02:17]}  Nbd7 {[%clk 0:02:41]} 14. Nc6 {[%clk 0:02:10]}  Bd6 {[%clk 0:02:37]} 15. Nc4 {[%clk 0:02:07]}  Nd5 {[%clk 0:02:31]} 16. Nxd6 {[%clk 0:01:58]}  Qxd6 {[%clk 0:02:31]} 17. Na5 {[%clk 0:01:56]}  N7b6 {[%clk 0:02:19]} 18. Nc4 {[%clk 0:01:50]}  Nxc4 {[%clk 0:02:17]} 19. dxc4 {[%clk 0:01:51]}  Nb6 {[%clk 0:02:18]} 20. b3 {[%clk 0:01:36]}  a5 {[%clk 0:02:14]} 21. Be3 {[%clk 0:01:32]}  e5 {[%clk 0:02:11]} 22. Rad1 {[%clk 0:01:30]}  Qe7 {[%clk 0:02:11]} 23. Qc6 {[%clk 0:01:25]}  Rab8 {[%clk 0:01:58]} 24. Bxc5 {[%clk 0:01:19]}  Qa7 {[%clk 0:01:54]} 25. Bxf8 {[%clk 0:01:16]}  Rxf8 {[%clk 0:01:55]} 26. Rxe5 {[%clk 0:01:13]}  h6 {[%clk 0:01:55]} 27. Re8 {[%clk 0:01:06]}  Rxe8 {[%clk 0:01:54]} 28. Qxe8+ {[%clk 0:01:06]}  Kh7 {[%clk 0:01:55]} 29. c5 {[%clk 0:00:57]}  Qb7+ {[%clk 0:01:52]} 30. f3 {[%clk 0:00:57]}  Nc8 {[%clk 0:01:47]} 31. Qe4+ {[%clk 0:00:49]}  Qxe4 {[%clk 0:01:42]} 32. fxe4 {[%clk 0:00:49]}  Kg6 {[%clk 0:01:42]} 33. c6 {[%clk 0:00:47]}  Kf6 {[%clk 0:01:38]} 34. c7 {[%clk 0:00:47]} 1-0


[Site "https://www.chess.com"]

[Event "Titled Tuesday Blitz May 16 Early 2023"]
[White "Demin, Vladimir"]
[Black "Aarav Dengla"]
[WhiteFideId "4167457"]
[BlackFideId "45059756"]
[WhiteElo "2539"]
[BlackElo "2288"]
[Result "1-0"]
[Round "07"]
[TimeControl "180+2"]
[Date "2023.05.16"]
[WhiteClock "0:00:28"]
[BlackClock "0:00:01"]

1. d4 {[%clk 0:03:00]}  d5 {[%clk 0:02:57]} 2. Nc3 {[%clk 0:03:01]}  Nf6 {[%clk 0:02:52]} 3. Bf4 {[%clk 0:03:01]}  c5 {[%clk 0:02:49]} 4. e4 {[%clk 0:03:01]}  e6 {[%clk 0:02:37]} 5. exd5 {[%clk 0:02:54]}  cxd4 {[%clk 0:02:32]} 6. Qxd4 {[%clk 0:02:41]}  Nc6 {[%clk 0:02:30]} 7. Bb5 {[%clk 0:02:33]}  Nxd5 {[%clk 0:02:24]} 8. O-O-O {[%clk 0:02:25]}  a6 {[%clk 0:02:13]} 9. Ba4 {[%clk 0:02:13]}  b5 {[%clk 0:01:55]} 10. Nxd5 {[%clk 0:02:13]}  Nxd4 {[%clk 0:01:40]} 11. Nc7+ {[%clk 0:02:00]}  Ke7 {[%clk 0:01:37]} 12. Nxa8 {[%clk 0:01:47]}  Bb7 {[%clk 0:01:36]} 13. Nf3 {[%clk 0:01:44]}  Ne2+ {[%clk 0:01:27]} 14. Kb1 {[%clk 0:01:43]}  Qxd1+ {[%clk 0:01:28]} 15. Rxd1 {[%clk 0:01:42]}  Nxf4 {[%clk 0:01:28]} 16. Nb6 {[%clk 0:01:33]}  Bxf3 {[%clk 0:01:11]} 17. gxf3 {[%clk 0:01:28]}  bxa4 {[%clk 0:01:10]} 18. Rd7+ {[%clk 0:01:25]}  Kf6 {[%clk 0:01:04]} 19. Nxa4 {[%clk 0:01:25]}  Be7 {[%clk 0:00:45]} 20. c4 {[%clk 0:01:23]}  Rd8 {[%clk 0:00:42]} 21. Ra7 {[%clk 0:01:23]}  Rd2 {[%clk 0:00:40]} 22. Nc3 {[%clk 0:01:23]}  Bc5 {[%clk 0:00:09]} 23. Ne4+ {[%clk 0:01:22]}  Ke5 {[%clk 0:00:09]} 24. Nxc5 {[%clk 0:01:23]}  Rxf2 {[%clk 0:00:09]} 25. Rxf7 {[%clk 0:01:20]}  Ne2 {[%clk 0:00:08]} 26. Nb3 {[%clk 0:01:07]}  Rf1+ {[%clk 0:00:06]} 27. Kc2 {[%clk 0:01:07]}  Rf2 {[%clk 0:00:07]} 28. c5 {[%clk 0:01:00]}  Rxh2 {[%clk 0:00:05]} 29. Rxg7 {[%clk 0:00:54]}  Nd4+ {[%clk 0:00:05]} 30. Kc3 {[%clk 0:00:54]}  Nxf3 {[%clk 0:00:06]} 31. c6 {[%clk 0:00:52]}  Ne1 {[%clk 0:00:06]} 32. Nd2 {[%clk 0:00:47]}  Rh3+ {[%clk 0:00:06]} 33. Kb4 {[%clk 0:00:47]}  Nd3+ {[%clk 0:00:06]} 34. Ka5 {[%clk 0:00:47]}  Nxb2 {[%clk 0:00:06]} 35. c7 {[%clk 0:00:36]}  Rc3 {[%clk 0:00:06]} 36. Kb6 {[%clk 0:00:36]}  h5 {[%clk 0:00:05]} 37. Rh7 {[%clk 0:00:35]}  h4 {[%clk 0:00:03]} 38. Rxh4 {[%clk 0:00:32]}  Kd6 {[%clk 0:00:02]} 39. Rd4+ {[%clk 0:00:32]}  Ke7 {[%clk 0:00:03]} 40. Kb7 {[%clk 0:00:29]}  Na4 {[%clk 0:00:02]} 41. c8=Q {[%clk 0:00:27]}  Rxc8 {[%clk 0:00:01]} 42. Kxc8 {[%clk 0:00:28]} 1-0


[Site "https://www.chess.com"]

[Event "Titled Tuesday Blitz May 16 Early 2023"]
[White "Tokman, Ariel"]
[Black "Petrova, Irina"]
[WhiteFideId "117420"]
[BlackFideId "14124122"]
[WhiteElo "2263"]
[BlackElo "2084"]
[Result "1-0"]
[Round "07"]
[TimeControl "180+2"]
[Date "2023.05.16"]
[WhiteClock "0:01:54"]
[BlackClock "0:01:08"]

1. b3 {[%clk 0:02:55]}  e5 {[%clk 0:02:59]} 2. Bb2 {[%clk 0:02:56]}  Nc6 {[%clk 0:03:00]} 3. e3 {[%clk 0:02:56]}  Nf6 {[%clk 0:02:58]} 4. Bb5 {[%clk 0:02:56]}  Bd6 {[%clk 0:02:59]} 5. Nf3 {[%clk 0:02:52]}  e4 {[%clk 0:02:58]} 6. Nd4 {[%clk 0:02:53]}  Nxd4 {[%clk 0:02:56]} 7. Bxd4 {[%clk 0:02:53]}  c6 {[%clk 0:02:56]} 8. Be2 {[%clk 0:02:53]}  Be5 {[%clk 0:02:54]} 9. Bxe5 {[%clk 0:02:52]}  O-O {[%clk 0:02:49]} 10. c4 {[%clk 0:02:49]}  Re8 {[%clk 0:02:49]} 11. Bb2 {[%clk 0:02:48]}  d5 {[%clk 0:02:49]} 12. cxd5 {[%clk 0:02:49]}  cxd5 {[%clk 0:02:49]} 13. Nc3 {[%clk 0:02:49]}  a6 {[%clk 0:02:42]} 14. O-O {[%clk 0:02:49]}  Qd6 {[%clk 0:02:42]} 15. d3 {[%clk 0:02:48]}  Qe5 {[%clk 0:02:36]} 16. dxe4 {[%clk 0:02:47]}  dxe4 {[%clk 0:02:36]} 17. Qd4 {[%clk 0:02:44]}  Qg5 {[%clk 0:02:34]} 18. Rfd1 {[%clk 0:02:41]}  Bh3 {[%clk 0:02:33]} 19. Bf1 {[%clk 0:02:34]}  h5 {[%clk 0:02:16]} 20. Nd5 {[%clk 0:02:26]}  Nxd5 {[%clk 0:02:03]} 21. Qxd5 {[%clk 0:02:25]}  Qg6 {[%clk 0:02:04]} 22. Qd6 {[%clk 0:02:18]}  Re6 {[%clk 0:02:02]} 23. Qg3 {[%clk 0:02:18]}  Bg4 {[%clk 0:02:02]} 24. Rd5 {[%clk 0:02:06]}  Qh7 {[%clk 0:01:52]} 25. h3 {[%clk 0:02:03]}  Bf5 {[%clk 0:01:51]} 26. Qf4 {[%clk 0:02:01]}  Bg4 {[%clk 0:01:08]} 27. Rg5 {[%clk 0:01:54]} 1-0


[Site "https://www.chess.com"]

[Event "Titled Tuesday Blitz May 16 Early 2023"]
[White "Balla, Tamas-Kristof"]
[Black "Estrada Nieto, Julian"]
[WhiteFideId "1208497"]
[BlackFideId "5101018"]
[WhiteElo "2334"]
[BlackElo "2161"]
[Result "0-1"]
[Round "07"]
[TimeControl "180+2"]
[Date "2023.05.16"]
[WhiteClock "0:00:12"]
[BlackClock "0:00:55"]

1. d4 {[%clk 0:03:00]}  d5 {[%clk 0:02:59]} 2. Nc3 {[%clk 0:02:59]}  Nf6 {[%clk 0:02:59]} 3. Bf4 {[%clk 0:02:59]}  c6 {[%clk 0:02:58]} 4. e3 {[%clk 0:02:58]}  Bf5 {[%clk 0:02:58]} 5. Bd3 {[%clk 0:02:57]}  e6 {[%clk 0:02:57]} 6. Nf3 {[%clk 0:02:50]}  Bb4 {[%clk 0:02:48]} 7. O-O {[%clk 0:02:48]}  O-O {[%clk 0:02:47]} 8. Ne5 {[%clk 0:02:42]}  Nbd7 {[%clk 0:02:46]} 9. Ne2 {[%clk 0:02:37]}  Bxd3 {[%clk 0:02:39]} 10. Qxd3 {[%clk 0:02:36]}  Nxe5 {[%clk 0:02:31]} 11. Bxe5 {[%clk 0:02:34]}  Bd6 {[%clk 0:02:30]} 12. Ng3 {[%clk 0:02:24]}  c5 {[%clk 0:02:23]} 13. f4 {[%clk 0:02:14]}  Rc8 {[%clk 0:01:58]} 14. c3 {[%clk 0:02:08]}  Qe7 {[%clk 0:01:48]} 15. Bxf6 {[%clk 0:01:44]}  Qxf6 {[%clk 0:01:47]} 16. Rf3 {[%clk 0:01:44]}  g6 {[%clk 0:01:37]} 17. e4 {[%clk 0:01:36]}  Qh4 {[%clk 0:01:29]} 18. e5 {[%clk 0:01:21]}  Bb8 {[%clk 0:01:20]} 19. Ne2 {[%clk 0:01:12]}  cxd4 {[%clk 0:01:17]} 20. Nxd4 {[%clk 0:01:11]}  a6 {[%clk 0:01:15]} 21. Kh1 {[%clk 0:00:50]}  Ba7 {[%clk 0:01:12]} 22. Ne2 {[%clk 0:00:50]}  Rc4 {[%clk 0:01:10]} 23. Rh3 {[%clk 0:00:48]}  Qg4 {[%clk 0:01:07]} 24. Rg3 {[%clk 0:00:42]}  Qf5 {[%clk 0:01:00]} 25. Qxf5 {[%clk 0:00:41]}  exf5 {[%clk 0:01:00]} 26. Rd3 {[%clk 0:00:36]}  Re4 {[%clk 0:00:56]} 27. Re1 {[%clk 0:00:12]}  Bf2 {[%clk 0:00:55]} 0-1


[Site "https://www.chess.com"]

[Event "Titled Tuesday Blitz May 16 Early 2023"]
[White "Shuvalov, Evgenij"]
[Black "Gutkin, Ilya"]
[WhiteFideId "4187237"]
[BlackFideId "16203470"]
[WhiteElo "2080"]
[BlackElo "2265"]
[Result "1-0"]
[Round "07"]
[TimeControl "180+2"]
[Date "2023.05.16"]
[WhiteClock "0:00:20"]
[BlackClock "0:00:41"]

1. d4 {[%clk 0:02:59]}  e6 {[%clk 0:03:00]} 2. c4 {[%clk 0:02:58]}  b6 {[%clk 0:02:59]} 3. e4 {[%clk 0:02:58]}  Bb7 {[%clk 0:02:59]} 4. Bd3 {[%clk 0:02:58]}  Bb4+ {[%clk 0:02:59]} 5. Bd2 {[%clk 0:02:57]}  Bxd2+ {[%clk 0:02:58]} 6. Nxd2 {[%clk 0:02:58]}  f5 {[%clk 0:02:54]} 7. Ngf3 {[%clk 0:02:55]}  fxe4 {[%clk 0:02:52]} 8. Nxe4 {[%clk 0:02:55]}  Nf6 {[%clk 0:02:52]} 9. Qe2 {[%clk 0:02:54]}  O-O {[%clk 0:02:52]} 10. O-O {[%clk 0:02:54]}  Nxe4 {[%clk 0:02:44]} 11. Bxe4 {[%clk 0:02:54]}  Bxe4 {[%clk 0:02:45]} 12. Qxe4 {[%clk 0:02:54]}  Nc6 {[%clk 0:02:46]} 13. Rad1 {[%clk 0:02:52]}  Qf6 {[%clk 0:02:43]} 14. Rfe1 {[%clk 0:02:50]}  Rae8 {[%clk 0:02:42]} 15. h3 {[%clk 0:02:48]}  Qf4 {[%clk 0:02:38]} 16. Qd3 {[%clk 0:02:34]}  e5 {[%clk 0:02:31]} 17. dxe5 {[%clk 0:02:24]}  Nxe5 {[%clk 0:02:30]} 18. Rxe5 {[%clk 0:02:13]}  Rxe5 {[%clk 0:02:28]} 19. Nxe5 {[%clk 0:02:14]}  Qxe5 {[%clk 0:02:27]} 20. Qd5+ {[%clk 0:01:49]}  Qxd5 {[%clk 0:02:26]} 21. cxd5 {[%clk 0:01:50]}  Kf7 {[%clk 0:02:19]} 22. Rc1 {[%clk 0:01:47]}  Rc8 {[%clk 0:02:19]} 23. Re1 {[%clk 0:01:28]}  Re8 {[%clk 0:02:18]} 24. Rc1 {[%clk 0:01:27]}  Rc8 {[%clk 0:02:19]} 25. Re1 {[%clk 0:01:27]}  c6 {[%clk 0:02:15]} 26. dxc6 {[%clk 0:01:25]}  Rxc6 {[%clk 0:02:16]} 27. Re2 {[%clk 0:01:25]}  d5 {[%clk 0:02:13]} 28. f4 {[%clk 0:01:23]}  Rc4 {[%clk 0:02:11]} 29. g3 {[%clk 0:01:21]}  Kf6 {[%clk 0:01:55]} 30. Kf2 {[%clk 0:01:21]}  Kf5 {[%clk 0:01:48]} 31. Kf3 {[%clk 0:01:13]}  Kf6 {[%clk 0:01:43]} 32. g4 {[%clk 0:01:07]}  h6 {[%clk 0:01:42]} 33. Rd2 {[%clk 0:01:02]}  Ke6 {[%clk 0:01:41]} 34. h4 {[%clk 0:00:59]}  Rc1 {[%clk 0:01:33]} 35. h5 {[%clk 0:00:56]}  Rf1+ {[%clk 0:01:29]} 36. Ke3 {[%clk 0:00:55]}  Rg1 {[%clk 0:01:29]} 37. Kf3 {[%clk 0:00:51]}  Kd6 {[%clk 0:01:28]} 38. f5 {[%clk 0:00:38]}  Rf1+ {[%clk 0:01:20]} 39. Ke3 {[%clk 0:00:37]}  Ke5 {[%clk 0:01:19]} 40. Re2 {[%clk 0:00:32]}  Rf4 {[%clk 0:01:12]} 41. Kd3+ {[%clk 0:00:31]}  Kd6 {[%clk 0:01:04]} 42. Re6+ {[%clk 0:00:30]}  Kc5 {[%clk 0:01:01]} 43. Rg6 {[%clk 0:00:30]}  Rf3+ {[%clk 0:01:01]} 44. Ke2 {[%clk 0:00:30]}  Rh3 {[%clk 0:00:58]} 45. Rxg7 {[%clk 0:00:29]}  Rh2+ {[%clk 0:00:58]} 46. Kd3 {[%clk 0:00:29]}  Rxb2 {[%clk 0:00:57]} 47. f6 {[%clk 0:00:25]}  Rf2 {[%clk 0:00:55]} 48. f7 {[%clk 0:00:20]}  a5 {[%clk 0:00:54]} 49. g5 {[%clk 0:00:20]}  hxg5 {[%clk 0:00:53]} 50. h6 {[%clk 0:00:20]}  g4 {[%clk 0:00:50]} 51. h7 {[%clk 0:00:20]}  g3 {[%clk 0:00:50]} 52. h8=Q {[%clk 0:00:20]}  g2 {[%clk 0:00:41]} 53. f8=Q+ {[%clk 0:00:20]} 1-0


[Site "https://www.chess.com"]

[Event "Titled Tuesday Blitz May 16 Early 2023"]
[White "Chernomordik, Pavel"]
[Black "Hinds, Nathan"]
[WhiteFideId "2804530"]
[BlackFideId "7400730"]
[WhiteElo "2193"]
[BlackElo "2001"]
[Result "1-0"]
[Round "07"]
[TimeControl "180+2"]
[Date "2023.05.16"]
[WhiteClock "0:00:05"]
[BlackClock "0:00:14"]

1. e4 {[%clk 0:03:00]}  c6 {[%clk 0:02:59]} 2. Nc3 {[%clk 0:03:00]}  d5 {[%clk 0:02:59]} 3. Nf3 {[%clk 0:03:00]}  dxe4 {[%clk 0:02:59]} 4. Nxe4 {[%clk 0:03:00]}  Bg4 {[%clk 0:03:00]} 5. h3 {[%clk 0:02:59]}  Bxf3 {[%clk 0:03:00]} 6. Qxf3 {[%clk 0:02:58]}  e6 {[%clk 0:03:01]} 7. Qg3 {[%clk 0:02:46]}  Nf6 {[%clk 0:02:53]} 8. Nxf6+ {[%clk 0:02:43]}  Qxf6 {[%clk 0:02:48]} 9. Qc7 {[%clk 0:02:42]}  Nd7 {[%clk 0:01:43]} 10. Qxb7 {[%clk 0:02:38]}  Qe5+ {[%clk 0:01:41]} 11. Be2 {[%clk 0:02:35]}  Rb8 {[%clk 0:01:31]} 12. Qxc6 {[%clk 0:02:35]}  Be7 {[%clk 0:01:26]} 13. Qc3 {[%clk 0:02:27]}  Qg5 {[%clk 0:01:24]} 14. O-O {[%clk 0:02:23]}  O-O {[%clk 0:01:13]} 15. d4 {[%clk 0:02:22]}  Qh4 {[%clk 0:01:14]} 16. Qc7 {[%clk 0:02:16]}  Rfd8 {[%clk 0:01:10]} 17. Qf4 {[%clk 0:02:14]}  Qxf4 {[%clk 0:00:51]} 18. Bxf4 {[%clk 0:02:13]}  Rxb2 {[%clk 0:00:52]} 19. Bd3 {[%clk 0:02:13]}  Bf6 {[%clk 0:00:51]} 20. c3 {[%clk 0:02:01]}  Nc5 {[%clk 0:00:48]} 21. Rfd1 {[%clk 0:01:51]}  Nxd3 {[%clk 0:00:47]} 22. Rxd3 {[%clk 0:01:51]}  Rc2 {[%clk 0:00:48]} 23. Be3 {[%clk 0:01:33]}  e5 {[%clk 0:00:44]} 24. Rad1 {[%clk 0:01:24]}  exd4 {[%clk 0:00:41]} 25. Bxd4 {[%clk 0:01:22]}  Bxd4 {[%clk 0:00:39]} 26. Rxd4 {[%clk 0:01:20]}  Rxd4 {[%clk 0:00:36]} 27. Rxd4 {[%clk 0:01:20]}  Kf8 {[%clk 0:00:36]} 28. Ra4 {[%clk 0:01:19]}  Rxc3 {[%clk 0:00:35]} 29. Rxa7 {[%clk 0:01:18]}  g6 {[%clk 0:00:33]} 30. h4 {[%clk 0:01:17]}  h5 {[%clk 0:00:32]} 31. g3 {[%clk 0:01:16]}  Rc2 {[%clk 0:00:31]} 32. Kg2 {[%clk 0:01:16]}  Kg7 {[%clk 0:00:31]} 33. Kf3 {[%clk 0:01:14]}  Rc3+ {[%clk 0:00:30]} 34. Ke2 {[%clk 0:01:14]}  Rc2+ {[%clk 0:00:30]} 35. Ke3 {[%clk 0:01:13]}  Rc3+ {[%clk 0:00:30]} 36. Kd2 {[%clk 0:01:12]}  Rf3 {[%clk 0:00:26]} 37. Ke2 {[%clk 0:01:10]}  Rc3 {[%clk 0:00:26]} 38. a4 {[%clk 0:00:59]}  Rc2+ {[%clk 0:00:23]} 39. Ke3 {[%clk 0:00:59]}  Rc3+ {[%clk 0:00:23]} 40. Kf4 {[%clk 0:00:57]}  Rc4+ {[%clk 0:00:22]} 41. Ke3 {[%clk 0:00:54]}  Rc3+ {[%clk 0:00:22]} 42. Kd2 {[%clk 0:00:54]}  Rf3 {[%clk 0:00:21]} 43. Ke2 {[%clk 0:00:54]}  Rc3 {[%clk 0:00:21]} 44. a5 {[%clk 0:00:51]}  Rc2+ {[%clk 0:00:21]} 45. Ke3 {[%clk 0:00:51]}  Rc3+ {[%clk 0:00:21]} 46. Kd2 {[%clk 0:00:51]}  Rf3 {[%clk 0:00:21]} 47. Ke2 {[%clk 0:00:50]}  Rc3 {[%clk 0:00:21]} 48. Rd7 {[%clk 0:00:45]}  Ra3 {[%clk 0:00:16]} 49. Rd5 {[%clk 0:00:44]}  Kf6 {[%clk 0:00:16]} 50. Kd2 {[%clk 0:00:39]}  Ke6 {[%clk 0:00:17]} 51. Rb5 {[%clk 0:00:38]}  Kd6 {[%clk 0:00:09]} 52. Ke2 {[%clk 0:00:25]}  Ra2+ {[%clk 0:00:09]} 53. Kf3 {[%clk 0:00:25]}  Ra3+ {[%clk 0:00:10]} 54. Kf4 {[%clk 0:00:25]}  Ke6 {[%clk 0:00:09]} 55. Rb6+ {[%clk 0:00:23]}  Ke7 {[%clk 0:00:09]} 56. a6 {[%clk 0:00:22]}  Kf8 {[%clk 0:00:07]} 57. Kg5 {[%clk 0:00:21]}  Kg7 {[%clk 0:00:07]} 58. Kf4 {[%clk 0:00:17]}  Ra4+ {[%clk 0:00:07]} 59. Ke3 {[%clk 0:00:15]}  Ra3+ {[%clk 0:00:07]} 60. Ke2 {[%clk 0:00:15]}  Ra2+ {[%clk 0:00:08]} 61. Kf3 {[%clk 0:00:15]}  Ra3+ {[%clk 0:00:08]} 62. Kg2 {[%clk 0:00:15]}  Ra2 {[%clk 0:00:09]} 63. Kg1 {[%clk 0:00:11]}  Ra3 {[%clk 0:00:09]} 64. Kg2 {[%clk 0:00:10]}  Ra2 {[%clk 0:00:10]} 65. Rd6 {[%clk 0:00:10]}  Ra3 {[%clk 0:00:10]} 66. f3 {[%clk 0:00:10]}  Ra2+ {[%clk 0:00:10]} 67. Kh3 {[%clk 0:00:10]}  Ra3 {[%clk 0:00:11]} 68. f4 {[%clk 0:00:09]}  Ra4 {[%clk 0:00:11]} 69. Kg2 {[%clk 0:00:08]}  Ra3 {[%clk 0:00:12]} 70. Kf2 {[%clk 0:00:08]}  Ra2+ {[%clk 0:00:12]} 71. Kf3 {[%clk 0:00:08]}  Ra3+ {[%clk 0:00:13]} 72. Ke4 {[%clk 0:00:08]}  Ra4+ {[%clk 0:00:13]} 73. Ke5 {[%clk 0:00:07]}  Ra3 {[%clk 0:00:14]} 74. Kd5 {[%clk 0:00:06]}  Rxg3 {[%clk 0:00:14]} 75. a7 {[%clk 0:00:05]}  Ra3 {[%clk 0:00:14]} 76. Rd7 {[%clk 0:00:05]}  Kf6 {[%clk 0:00:14]} 77. Kc6 {[%clk 0:00:05]}  Rc3+ {[%clk 0:00:12]} 78. Kb7 {[%clk 0:00:04]}  Rb3+ {[%clk 0:00:12]} 79. Kc8 {[%clk 0:00:03]}  Ra3 {[%clk 0:00:11]} 80. Kb8 {[%clk 0:00:03]}  Rb3+ {[%clk 0:00:07]} 81. Rb7 {[%clk 0:00:03]}  Rd3 {[%clk 0:00:07]} 82. a8=Q {[%clk 0:00:04]}  Rd8+ {[%clk 0:00:07]} 83. Ka7 {[%clk 0:00:03]}  Rxa8+ {[%clk 0:00:08]} 84. Kxa8 {[%clk 0:00:04]}  Kf5 {[%clk 0:00:09]} 85. Rxf7+ {[%clk 0:00:04]}  Kg4 {[%clk 0:00:09]} 86. Rf6 {[%clk 0:00:04]}  Kxh4 {[%clk 0:00:09]} 87. Rxg6 {[%clk 0:00:04]}  Kh3 {[%clk 0:00:10]} 88. f5 {[%clk 0:00:04]}  h4 {[%clk 0:00:11]} 89. f6 {[%clk 0:00:04]}  Kh2 {[%clk 0:00:12]} 90. f7 {[%clk 0:00:05]}  h3 {[%clk 0:00:12]} 91. f8=Q {[%clk 0:00:05]}  Kh1 {[%clk 0:00:13]} 92. Qf1+ {[%clk 0:00:05]}  Kh2 {[%clk 0:00:14]} 93. Qg1# {[%clk 0:00:05]} 1-0


[Site "https://www.chess.com"]